[Event "*** Titled Tuesday Blitz"]
[Site "Chess.com"]
[Date "2021.04.20"]
[Round "7"]
[White "suneebaker"]
[Black "energie73"]
[Result "0-1"]
[WhiteElo "2198"]
[BlackElo "2342"]
[TimeControl "180+1"]
[EndTime "11:15:13 PDT"]
[Termination "energie73 won on time"]

1. e4 {[%clk 0:03:00.9]} 1... e6 {[%clk 0:02:59.6]} 2. Nf3 {[%clk 0:03:00.5]}
2... d5 {[%clk 0:03:00.2]} 3. Nc3 {[%clk 0:03:00.4]} 3... Nf6 {[%clk 0:02:55]}
4. e5 {[%clk 0:02:59.6]} 4... Nfd7 {[%clk 0:02:53.8]} 5. d4 {[%clk 0:03:00]}
5... a6 {[%clk 0:02:52]} 6. Bf4 {[%clk 0:02:58]} 6... c5 {[%clk 0:02:51.8]} 7.
dxc5 {[%clk 0:02:58]} 7... Nc6 {[%clk 0:02:48.5]} 8. Bd3 {[%clk 0:02:57.4]} 8...
Nxc5 {[%clk 0:02:48.2]} 9. O-O {[%clk 0:02:56.9]} 9... Be7 {[%clk 0:02:46.8]}
10. Bg3 {[%clk 0:02:55]} 10... h5 {[%clk 0:02:43.3]} 11. h3 {[%clk 0:02:53]}
11... g5 {[%clk 0:02:43.3]} 12. Ne2 {[%clk 0:02:44.8]} 12... b5 {[%clk
0:02:34.7]} 13. Ned4 {[%clk 0:02:37.4]} 13... Bb7 {[%clk 0:02:32.6]} 14. Nxc6
{[%clk 0:02:34.7]} 14... Bxc6 {[%clk 0:02:33.5]} 15. Nd4 {[%clk 0:02:34.6]}
15... Bb7 {[%clk 0:02:33.4]} 16. f4 {[%clk 0:02:34.1]} 16... h4 {[%clk
0:02:27.3]} 17. Bh2 {[%clk 0:02:31.6]} 17... gxf4 {[%clk 0:02:27.8]} 18. Bxf4
{[%clk 0:02:28.4]} 18... Rg8 {[%clk 0:02:24.6]} 19. Qf3 {[%clk 0:02:26.4]} 19...
Qb6 {[%clk 0:02:24.2]} 20. Kh1 {[%clk 0:02:19.8]} 20... O-O-O {[%clk 0:02:24]}
21. c3 {[%clk 0:01:51.8]} 21... Ne4 {[%clk 0:02:21.7]} 22. a4 {[%clk 0:01:48.3]}
22... Bc5 {[%clk 0:02:10.1]} 23. axb5 {[%clk 0:01:41.8]} 23... Bxd4 {[%clk
0:02:09.2]} 24. cxd4 {[%clk 0:01:41.5]} 24... Qxd4 {[%clk 0:02:09.8]} 25. bxa6
{[%clk 0:01:35.1]} 25... Ba8 {[%clk 0:02:10.1]} 26. Rac1+ {[%clk 0:01:29.5]}
26... Kb8 {[%clk 0:02:03.8]} 27. Be3 {[%clk 0:01:25.9]} 27... Qa4 {[%clk
0:01:52.4]} 28. b3 {[%clk 0:01:12.6]} 28... Qd7 {[%clk 0:01:51.1]} 29. Bxe4
{[%clk 0:01:02.2]} 29... dxe4 {[%clk 0:01:50.8]} 30. Qe2 {[%clk 0:01:00.7]}
30... Qd3 {[%clk 0:01:48.8]} 31. Qf2 {[%clk 0:00:57.5]} 31... Bd5 {[%clk
0:01:44.2]} 32. Bc5 {[%clk 0:00:48.4]} 32... Rg3 {[%clk 0:01:40.4]} 33. Bd6+
{[%clk 0:00:46.2]} 33... Ka8 {[%clk 0:01:40.4]} 34. Kh2 {[%clk 0:00:29.8]} 34...
e3 {[%clk 0:01:38.6]} 0-1

[Event "*** Titled Tuesday Blitz"]
[Site "Chess.com"]
[Date "2021.04.20"]
[Round "7"]
[White "losersgame"]
[Black "kubal123"]
[Result "0-1"]
[WhiteElo "2336"]
[BlackElo "2247"]
[TimeControl "180+1"]
[EndTime "11:15:14 PDT"]
[Termination "kubal123 won by resignation"]

1. d4 {[%clk 0:03:00.9]} 1... e6 {[%clk 0:02:58]} 2. e4 {[%clk 0:03:00.1]} 2...
d5 {[%clk 0:02:58.9]} 3. Nd2 {[%clk 0:02:59]} 3... dxe4 {[%clk 0:02:59]} 4. Nxe4
{[%clk 0:02:57.7]} 4... Nd7 {[%clk 0:02:59.9]} 5. Nf3 {[%clk 0:02:56.6]} 5...
Ngf6 {[%clk 0:02:57.9]} 6. Bd3 {[%clk 0:02:55.6]} 6... Be7 {[%clk 0:02:56.8]} 7.
Qe2 {[%clk 0:02:53.6]} 7... O-O {[%clk 0:02:55.7]} 8. Bd2 {[%clk 0:02:51.7]}
8... b6 {[%clk 0:02:44.6]} 9. O-O-O {[%clk 0:02:27.8]} 9... Bb7 {[%clk 0:02:37]}
10. Rhg1 {[%clk 0:02:27.5]} 10... c5 {[%clk 0:02:25.8]} 11. g4 {[%clk
0:02:16.5]} 11... Rc8 {[%clk 0:01:54.1]} 12. Nxf6+ {[%clk 0:02:04.6]} 12... Nxf6
{[%clk 0:01:53.5]} 13. g5 {[%clk 0:02:04.4]} 13... Nd5 {[%clk 0:01:49.7]} 14. h4
{[%clk 0:02:00.8]} 14... Qc7 {[%clk 0:01:43.8]} 15. dxc5 {[%clk 0:01:47.8]}
15... Nf4 {[%clk 0:01:34.2]} 16. Qe3 {[%clk 0:01:38.7]} 16... Nxd3+ {[%clk
0:01:32]} 17. Qxd3 {[%clk 0:01:38.7]} 17... Rfd8 {[%clk 0:01:30.8]} 18. Qc3
{[%clk 0:01:30.7]} 18... Qxc5 {[%clk 0:01:27.9]} 19. Qxc5 {[%clk 0:01:30.2]}
19... Bxc5 {[%clk 0:01:28.8]} 20. Ne5 {[%clk 0:01:25.6]} 20... Be4 {[%clk
0:01:18]} 21. Bc3 {[%clk 0:01:02.2]} 21... Bf5 {[%clk 0:01:11.4]} 22. Rxd8+
{[%clk 0:00:40.8]} 22... Rxd8 {[%clk 0:01:10.7]} 23. Rf1 {[%clk 0:00:40.7]}
23... Rd5 {[%clk 0:01:02.1]} 24. f4 {[%clk 0:00:33.8]} 24... Be3+ {[%clk
0:01:00.5]} 25. Kb1 {[%clk 0:00:31.5]} 25... Bxf4 {[%clk 0:00:58.8]} 26. Nd3
{[%clk 0:00:25.3]} 26... Rxd3 {[%clk 0:00:56.1]} 0-1

[Event "*** Titled Tuesday Blitz"]
[Site "Chess.com"]
[Date "2021.04.20"]
[Round "7"]
[White "GoValya"]
[Black "Diaschess88"]
[Result "0-1"]
[WhiteElo "2311"]
[BlackElo "2499"]
[TimeControl "180+1"]
[EndTime "11:15:18 PDT"]
[Termination "Diaschess88 won by resignation"]

1. d4 {[%clk 0:03:00.9]} 1... d5 {[%clk 0:02:53.1]} 2. g3 {[%clk 0:03:00.6]}
2... c6 {[%clk 0:02:51.6]} 3. Bg2 {[%clk 0:03:00.5]} 3... Nf6 {[%clk 0:02:52.3]}
4. c4 {[%clk 0:03:00.5]} 4... Bf5 {[%clk 0:02:52.5]} 5. Nc3 {[%clk 0:02:58.3]}
5... e6 {[%clk 0:02:52.8]} 6. Nf3 {[%clk 0:02:57.1]} 6... Nbd7 {[%clk
0:02:52.9]} 7. O-O {[%clk 0:02:57.2]} 7... Be7 {[%clk 0:02:53.2]} 8. Nd2 {[%clk
0:02:56.7]} 8... O-O {[%clk 0:02:51.9]} 9. e4 {[%clk 0:02:53.8]} 9... dxe4
{[%clk 0:02:52]} 10. Ndxe4 {[%clk 0:02:54]} 10... Nxe4 {[%clk 0:02:52.6]} 11.
Nxe4 {[%clk 0:02:54.1]} 11... Nf6 {[%clk 0:02:53.5]} 12. Nc3 {[%clk 0:02:53.8]}
12... Qa5 {[%clk 0:02:49.3]} 13. a3 {[%clk 0:02:41.4]} 13... Rad8 {[%clk
0:02:48.4]} 14. b4 {[%clk 0:02:39.1]} 14... Bxb4 {[%clk 0:02:45.9]} 15. axb4
{[%clk 0:02:26.5]} 15... Qxa1 {[%clk 0:02:44.1]} 16. Qb3 {[%clk 0:02:26.6]}
16... Qa6 {[%clk 0:02:14.8]} 17. Na4 {[%clk 0:01:46.8]} 17... b5 {[%clk
0:02:07.5]} 18. Nc5 {[%clk 0:01:04.3]} 18... bxc4 {[%clk 0:02:04.6]} 19. Qb2
{[%clk 0:01:01.9]} 19... Qb5 {[%clk 0:02:04.4]} 20. Bg5 {[%clk 0:01:01.2]} 20...
a5 {[%clk 0:01:52.9]} 21. Bxf6 {[%clk 0:00:34.9]} 21... gxf6 {[%clk 0:01:50.9]}
22. g4 {[%clk 0:00:18.1]} 22... Bg6 {[%clk 0:01:49.2]} 23. d5 {[%clk 0:00:18]}
23... axb4 {[%clk 0:01:46.8]} 24. Ne4 {[%clk 0:00:10.2]} 24... Bxe4 {[%clk
0:01:43.6]} 25. Bxe4 {[%clk 0:00:10.2]} 25... cxd5 {[%clk 0:01:43.9]} 26. Bb1
{[%clk 0:00:08.1]} 26... d4 {[%clk 0:01:41]} 27. Qe2 {[%clk 0:00:06]} 27... d3
{[%clk 0:01:37.4]} 28. Qe4 {[%clk 0:00:05.9]} 28... c3 {[%clk 0:01:34.1]} 29. f4
{[%clk 0:00:04.7]} 29... c2 {[%clk 0:01:32.8]} 30. Ba2 {[%clk 0:00:05.1]} 30...
Qc5+ {[%clk 0:01:30.4]} 31. Kh1 {[%clk 0:00:04.8]} 31... c1=Q {[%clk 0:01:30.2]}
0-1

[Event "*** Titled Tuesday Blitz"]
[Site "Chess.com"]
[Date "2021.04.20"]
[Round "7"]
[White "lider34"]
[Black "Matols"]
[Result "0-1"]
[WhiteElo "2423"]
[BlackElo "2273"]
[TimeControl "180+1"]
[EndTime "11:15:23 PDT"]
[Termination "Matols won by resignation"]

1. e4 {[%clk 0:03:00.9]} 1... e6 {[%clk 0:03:00.1]} 2. d3 {[%clk 0:02:59.3]}
2... d5 {[%clk 0:03:00]} 3. Nd2 {[%clk 0:02:58.9]} 3... c5 {[%clk 0:03:00]} 4.
Ngf3 {[%clk 0:02:58]} 4... Nf6 {[%clk 0:02:59.8]} 5. g3 {[%clk 0:02:57.8]} 5...
g6 {[%clk 0:02:59.5]} 6. Bg2 {[%clk 0:02:56]} 6... Bg7 {[%clk 0:02:59.7]} 7.
exd5 {[%clk 0:02:54]} 7... Nxd5 {[%clk 0:02:57.7]} 8. Nb3 {[%clk 0:02:52.6]}
8... Nd7 {[%clk 0:02:54.5]} 9. O-O {[%clk 0:02:48.5]} 9... O-O {[%clk
0:02:53.9]} 10. c4 {[%clk 0:02:46.7]} 10... Nb4 {[%clk 0:02:48.1]} 11. Be3
{[%clk 0:02:37.5]} 11... Qc7 {[%clk 0:02:44.9]} 12. a3 {[%clk 0:02:28.4]} 12...
Nc6 {[%clk 0:02:34.3]} 13. Nxc5 {[%clk 0:02:24.2]} 13... Bxb2 {[%clk 0:02:28.5]}
14. Ra2 {[%clk 0:02:16.3]} 14... Bg7 {[%clk 0:02:25.9]} 15. Nb3 {[%clk
0:02:13.3]} 15... Rd8 {[%clk 0:02:23.6]} 16. Qe2 {[%clk 0:02:10.2]} 16... e5
{[%clk 0:02:19.5]} 17. Ng5 {[%clk 0:02:05.6]} 17... Nf8 {[%clk 0:02:13.5]} 18.
Rb1 {[%clk 0:01:51.3]} 18... h6 {[%clk 0:02:02.8]} 19. Ne4 {[%clk 0:01:41.1]}
19... Ne6 {[%clk 0:02:01.9]} 20. Nec5 {[%clk 0:01:37.3]} 20... Ned4 {[%clk
0:01:46.3]} 21. Nxd4 {[%clk 0:01:33.7]} 21... Nxd4 {[%clk 0:01:46.4]} 22. Bxd4
{[%clk 0:01:33.2]} 22... Rxd4 {[%clk 0:01:28.1]} 23. Nxb7 {[%clk 0:01:25]} 23...
Rb8 {[%clk 0:01:25.5]} 24. Rab2 {[%clk 0:01:23.3]} 24... e4 {[%clk 0:01:16.8]}
25. Bxe4 {[%clk 0:01:10.7]} 25... Rxe4 {[%clk 0:01:12.6]} 26. Qxe4 {[%clk
0:01:08.4]} 26... Bxb2 {[%clk 0:01:10.8]} 27. Qe8+ {[%clk 0:00:45]} 27... Kg7
{[%clk 0:01:09.7]} 28. Nd8 {[%clk 0:00:43.7]} 28... Bf5 {[%clk 0:00:59.3]} 0-1

[Event "*** Titled Tuesday Blitz"]
[Site "Chess.com"]
[Date "2021.04.20"]
[Round "7"]
[White "GM_LOADING"]
[Black "dretch"]
[Result "0-1"]
[WhiteElo "2545"]
[BlackElo "2785"]
[TimeControl "180+1"]
[EndTime "11:15:27 PDT"]
[Termination "dretch won by checkmate"]

1. e4 {[%clk 0:03:00.9]} 1... e6 {[%clk 0:02:59.3]} 2. d4 {[%clk 0:02:58.4]}
2... d5 {[%clk 0:02:59.6]} 3. Nc3 {[%clk 0:02:59]} 3... Nf6 {[%clk 0:02:58.7]}
4. Bg5 {[%clk 0:02:58.4]} 4... dxe4 {[%clk 0:02:58.7]} 5. Nxe4 {[%clk
0:02:59.3]} 5... Be7 {[%clk 0:02:59.1]} 6. Bxf6 {[%clk 0:02:59.8]} 6... Bxf6
{[%clk 0:03:00]} 7. Nf3 {[%clk 0:02:59.7]} 7... Nd7 {[%clk 0:03:00.6]} 8. Qd2
{[%clk 0:02:59.4]} 8... O-O {[%clk 0:03:00.1]} 9. O-O-O {[%clk 0:02:58.4]} 9...
Be7 {[%clk 0:03:00.4]} 10. h4 {[%clk 0:02:51.6]} 10... b6 {[%clk 0:02:59.2]} 11.
Bd3 {[%clk 0:02:42.8]} 11... Bb7 {[%clk 0:02:58.4]} 12. Neg5 {[%clk 0:02:40.4]}
12... h6 {[%clk 0:02:55.9]} 13. Qf4 {[%clk 0:02:26.6]} 13... c5 {[%clk
0:02:40.9]} 14. dxc5 {[%clk 0:02:20]} 14... Qc8 {[%clk 0:02:36.6]} 15. Rh3
{[%clk 0:01:15.7]} 15... Nxc5 {[%clk 0:02:26.3]} 16. Rg3 {[%clk 0:00:34.8]}
16... Nxd3+ {[%clk 0:02:13.3]} 17. Rxd3 {[%clk 0:00:35.7]} 17... hxg5 {[%clk
0:02:03.4]} 18. hxg5 {[%clk 0:00:36.6]} 18... Bxf3 {[%clk 0:01:54.6]} 19. Qxf3
{[%clk 0:00:15.6]} 19... Rd8 {[%clk 0:01:31.8]} 20. g6 {[%clk 0:00:10]} 20...
Bf6 {[%clk 0:01:25.4]} 21. gxf7+ {[%clk 0:00:08.1]} 21... Kxf7 {[%clk 0:01:25]}
22. Qh5+ {[%clk 0:00:08.1]} 22... Ke7 {[%clk 0:01:24.4]} 23. Rde3 {[%clk
0:00:08.5]} 23... Qc5 {[%clk 0:01:07.1]} 24. Qh7 {[%clk 0:00:08.3]} 24... Qd4
{[%clk 0:01:02.8]} 25. b3 {[%clk 0:00:01]} 25... Qa1# {[%clk 0:00:59.5]} 0-1

[Event "*** Titled Tuesday Blitz"]
[Site "Chess.com"]
[Date "2021.04.20"]
[Round "7"]
[White "Gusarov91"]
[Black "Ajedrez_con_German"]
[Result "0-1"]
[WhiteElo "2636"]
[BlackElo "2520"]
[TimeControl "180+1"]
[EndTime "11:15:28 PDT"]
[Termination "Ajedrez_con_German won by resignation"]

1. d4 {[%clk 0:03:00.9]} 1... d5 {[%clk 0:02:56.5]} 2. Nf3 {[%clk 0:02:56.8]}
2... Nf6 {[%clk 0:02:55.4]} 3. c4 {[%clk 0:02:56.8]} 3... c6 {[%clk 0:02:55]} 4.
Nc3 {[%clk 0:02:56.4]} 4... dxc4 {[%clk 0:02:49.2]} 5. a4 {[%clk 0:02:56.6]}
5... e6 {[%clk 0:02:48.7]} 6. e3 {[%clk 0:02:53]} 6... c5 {[%clk 0:02:47.4]} 7.
Bxc4 {[%clk 0:02:52.9]} 7... cxd4 {[%clk 0:02:44.8]} 8. exd4 {[%clk 0:02:51.1]}
8... Nc6 {[%clk 0:02:44.5]} 9. O-O {[%clk 0:02:51]} 9... Be7 {[%clk 0:02:44.2]}
10. Bg5 {[%clk 0:02:46.4]} 10... Nb4 {[%clk 0:02:41.3]} 11. Re1 {[%clk 0:02:39]}
11... O-O {[%clk 0:02:39.6]} 12. Ne5 {[%clk 0:02:36.6]} 12... Bd7 {[%clk
0:02:33.7]} 13. Qb3 {[%clk 0:02:03.2]} 13... Bc6 {[%clk 0:02:23.1]} 14. Bxf6
{[%clk 0:01:57.7]} 14... gxf6 {[%clk 0:02:19.5]} 15. Nxf7 {[%clk 0:01:50.7]}
15... Kxf7 {[%clk 0:02:09.7]} 16. Rxe6 {[%clk 0:01:50.3]} 16... Kg7 {[%clk
0:02:06.6]} 17. d5 {[%clk 0:01:49.8]} 17... Bd7 {[%clk 0:01:59]} 18. Re3 {[%clk
0:01:45.4]} 18... Kh8 {[%clk 0:01:47.9]} 19. Rae1 {[%clk 0:01:39.2]} 19... Bc5
{[%clk 0:01:45.2]} 20. Rg3 {[%clk 0:01:21.4]} 20... Qb6 {[%clk 0:01:44]} 21. Re2
{[%clk 0:01:16.7]} 21... Rae8 {[%clk 0:01:38]} 22. Kf1 {[%clk 0:01:05]} 22...
Rxe2 {[%clk 0:01:31.1]} 23. Kxe2 {[%clk 0:01:05.5]} 23... Bxf2 {[%clk
0:01:21.1]} 24. a5 {[%clk 0:01:04.5]} 24... Re8+ {[%clk 0:01:15.5]} 25. Kd2
{[%clk 0:00:41.4]} 25... Qd4+ {[%clk 0:01:09.1]} 26. Rd3 {[%clk 0:00:37.7]}
26... Nxd3 {[%clk 0:01:04.8]} 27. Bxd3 {[%clk 0:00:38.6]} 27... Bf5 {[%clk
0:00:57.9]} 28. Ne2 {[%clk 0:00:38.9]} 28... Qxd3+ {[%clk 0:00:55.8]} 29. Qxd3
{[%clk 0:00:39.8]} 29... Bxd3 {[%clk 0:00:55.6]} 30. Kxd3 {[%clk 0:00:40.7]}
30... Re3+ {[%clk 0:00:45.4]} 31. Kd2 {[%clk 0:00:41.1]} 31... Re5 {[%clk
0:00:45]} 32. Nc3 {[%clk 0:00:40.1]} 32... Be1+ {[%clk 0:00:43.3]} 0-1

[Event "*** Titled Tuesday Blitz"]
[Site "Chess.com"]
[Date "2021.04.20"]
[Round "7"]
[White "korkmaz16"]
[Black "adnan_nn"]
[Result "0-1"]
[WhiteElo "2453"]
[BlackElo "2651"]
[TimeControl "180+1"]
[EndTime "11:15:32 PDT"]
[Termination "adnan_nn won by resignation"]

1. e4 {[%clk 0:03:00.9]} 1... c5 {[%clk 0:02:58.2]} 2. Nc3 {[%clk 0:03:00.7]}
2... Nc6 {[%clk 0:02:57]} 3. f4 {[%clk 0:03:01]} 3... g6 {[%clk 0:02:55.5]} 4.
Nf3 {[%clk 0:03:01.5]} 4... Bg7 {[%clk 0:02:55.3]} 5. Bb5 {[%clk 0:03:02.1]}
5... Nd4 {[%clk 0:02:55.7]} 6. O-O {[%clk 0:03:01.3]} 6... Nxb5 {[%clk
0:02:55.8]} 7. Nxb5 {[%clk 0:03:02]} 7... d5 {[%clk 0:02:55.2]} 8. exd5 {[%clk
0:03:01.1]} 8... a6 {[%clk 0:02:55.6]} 9. Nc3 {[%clk 0:03:00.9]} 9... Nf6 {[%clk
0:02:55.5]} 10. d4 {[%clk 0:03:01.4]} 10... c4 {[%clk 0:02:55.6]} 11. Qe2 {[%clk
0:03:00.8]} 11... b5 {[%clk 0:02:55.2]} 12. Re1 {[%clk 0:02:58.5]} 12... O-O
{[%clk 0:02:53.9]} 13. Qxe7 {[%clk 0:02:55.9]} 13... Qxe7 {[%clk 0:02:52.2]} 14.
Rxe7 {[%clk 0:02:56.8]} 14... b4 {[%clk 0:02:52.1]} 15. Na4 {[%clk 0:02:41.9]}
15... Nxd5 {[%clk 0:02:52.5]} 16. Re1 {[%clk 0:02:39.9]} 16... Bd7 {[%clk
0:02:53]} 17. Nc5 {[%clk 0:02:38.2]} 17... Bg4 {[%clk 0:02:51.4]} 18. Ne5 {[%clk
0:02:37.9]} 18... Bf5 {[%clk 0:02:48.7]} 19. Re2 {[%clk 0:02:17.6]} 19... Rfe8
{[%clk 0:02:28.3]} 20. g4 {[%clk 0:02:06.7]} 20... Bxg4 {[%clk 0:02:25.3]} 21.
Rg2 {[%clk 0:01:59.5]} 21... Bf5 {[%clk 0:02:21.6]} 22. Bd2 {[%clk 0:01:59.1]}
22... Bxc2 {[%clk 0:02:13.9]} 23. Bxb4 {[%clk 0:01:53.9]} 23... Nxb4 {[%clk
0:02:12.6]} 24. a3 {[%clk 0:01:53.6]} 24... Nd5 {[%clk 0:02:01.4]} 25. Rxc2
{[%clk 0:01:51.9]} 25... Nxf4 {[%clk 0:02:01.7]} 26. Rxc4 {[%clk 0:01:51.8]}
26... Ne2+ {[%clk 0:02:01.7]} 27. Kf2 {[%clk 0:01:50.9]} 27... Nxd4 {[%clk
0:02:02.3]} 28. Rxd4 {[%clk 0:01:51.3]} 28... Rxe5 {[%clk 0:01:58.5]} 29. Nd3
{[%clk 0:01:48.5]} 29... Rh5 {[%clk 0:01:43.5]} 30. Rd7 {[%clk 0:01:44.4]} 30...
Bxb2 {[%clk 0:01:34.3]} 31. Nxb2 {[%clk 0:01:40.3]} 31... Rxh2+ {[%clk
0:01:33.4]} 32. Kg3 {[%clk 0:01:41]} 32... Rxb2 {[%clk 0:01:33.7]} 33. Rf1
{[%clk 0:01:38.9]} 33... Rb3+ {[%clk 0:01:29.6]} 34. Kg4 {[%clk 0:01:38.2]}
34... h5+ {[%clk 0:01:26]} 35. Kg5 {[%clk 0:01:37.9]} 35... Rf8 {[%clk
0:01:23.3]} 36. Kh6 {[%clk 0:01:38.1]} 36... h4 {[%clk 0:01:10.1]} 37. Rf6
{[%clk 0:01:25.3]} 37... h3 {[%clk 0:00:58.8]} 38. Rxg6+ {[%clk 0:01:22.7]}
38... Kh8 {[%clk 0:00:50.4]} 39. Rg4 {[%clk 0:01:20.6]} 39... h2 {[%clk
0:00:48.4]} 40. Rh4 {[%clk 0:01:20]} 40... Rg3 {[%clk 0:00:47.4]} 41. Rxh2
{[%clk 0:01:18.5]} 41... Rg6+ {[%clk 0:00:46.1]} 42. Kh5 {[%clk 0:01:18.3]}
42... Kg7 {[%clk 0:00:46.8]} 43. Rxf7+ {[%clk 0:01:08.3]} 43... Rxf7 {[%clk
0:00:47.7]} 0-1

[Event "*** Titled Tuesday Blitz"]
[Site "Chess.com"]
[Date "2021.04.20"]
[Round "7"]
[White "klimkoj"]
[Black "ViktoriyaTarasova"]
[Result "1-0"]
[WhiteElo "2612"]
[BlackElo "2429"]
[TimeControl "180+1"]
[EndTime "11:15:35 PDT"]
[Termination "klimkoj won by resignation"]

1. e4 {[%clk 0:03:00.9]} 1... e5 {[%clk 0:02:59.6]} 2. Nf3 {[%clk 0:03:00.6]}
2... Nc6 {[%clk 0:02:59.9]} 3. Bb5 {[%clk 0:03:00.7]} 3... Nf6 {[%clk
0:02:59.4]} 4. O-O {[%clk 0:02:59.7]} 4... Nxe4 {[%clk 0:02:59]} 5. Re1 {[%clk
0:02:58.2]} 5... Nd6 {[%clk 0:02:58.9]} 6. Nxe5 {[%clk 0:02:58.5]} 6... Be7
{[%clk 0:02:58]} 7. Bf1 {[%clk 0:02:57.2]} 7... Nxe5 {[%clk 0:02:56.6]} 8. Rxe5
{[%clk 0:02:58.1]} 8... O-O {[%clk 0:02:57]} 9. d4 {[%clk 0:02:58.7]} 9... Ne8
{[%clk 0:02:56.9]} 10. c3 {[%clk 0:02:58.3]} 10... d5 {[%clk 0:02:51.2]} 11. Bd3
{[%clk 0:02:57.4]} 11... c6 {[%clk 0:02:26.5]} 12. Re1 {[%clk 0:02:58.3]} 12...
Bd6 {[%clk 0:02:21.3]} 13. Nd2 {[%clk 0:02:58.2]} 13... Nf6 {[%clk 0:02:14.6]}
14. Nf3 {[%clk 0:02:57.5]} 14... h6 {[%clk 0:02:12.7]} 15. Ne5 {[%clk
0:02:56.7]} 15... Re8 {[%clk 0:02:10.9]} 16. Bf4 {[%clk 0:02:54.3]} 16... Be6
{[%clk 0:02:03.2]} 17. Bc2 {[%clk 0:02:47.6]} 17... c5 {[%clk 0:01:50.4]} 18.
dxc5 {[%clk 0:02:36.7]} 18... Bxc5 {[%clk 0:01:48.4]} 19. Nd3 {[%clk 0:02:31.2]}
19... Bd6 {[%clk 0:01:44]} 20. Qf3 {[%clk 0:02:28.2]} 20... Ne4 {[%clk
0:01:40.5]} 21. Bxd6 {[%clk 0:02:23.8]} 21... Qxd6 {[%clk 0:01:39.9]} 22. Qf4
{[%clk 0:02:24.3]} 22... Qb6 {[%clk 0:01:29.2]} 23. Rad1 {[%clk 0:02:15.4]}
23... Rad8 {[%clk 0:01:28.2]} 24. Bb3 {[%clk 0:02:07.7]} 24... Re7 {[%clk
0:01:15.8]} 25. Nb4 {[%clk 0:02:03.8]} 25... Red7 {[%clk 0:01:13.2]} 26. Nc2
{[%clk 0:01:47.3]} 26... Nc5 {[%clk 0:01:11.5]} 27. Nd4 {[%clk 0:01:46.7]} 27...
Rd6 {[%clk 0:01:10.3]} 28. Re3 {[%clk 0:01:39.6]} 28... Bc8 {[%clk 0:01:08.7]}
29. Rde1 {[%clk 0:01:36.8]} 29... Ne4 {[%clk 0:00:57.7]} 30. f3 {[%clk
0:01:26.4]} 30... Rf6 {[%clk 0:00:49]} 31. Qe5 {[%clk 0:01:21.7]} 31... Nc5
{[%clk 0:00:33.5]} 32. Qe7 {[%clk 0:01:07.8]} 32... Nxb3 {[%clk 0:00:24.9]} 33.
axb3 {[%clk 0:01:06]} 33... Qd6 {[%clk 0:00:24.6]} 34. Qxd8+ {[%clk 0:01:03.6]}
34... Qxd8 {[%clk 0:00:22.6]} 35. Re8+ {[%clk 0:01:04.5]} 35... Qxe8 {[%clk
0:00:23.2]} 36. Rxe8+ {[%clk 0:01:05.4]} 36... Kh7 {[%clk 0:00:22.6]} 37. Rxc8
{[%clk 0:01:06.3]} 1-0

[Event "*** Titled Tuesday Blitz"]
[Site "Chess.com"]
[Date "2021.04.20"]
[Round "7"]
[White "GadimbayliA"]
[Black "Azerichess"]
[Result "0-1"]
[WhiteElo "2756"]
[BlackElo "2993"]
[TimeControl "180+1"]
[EndTime "11:15:37 PDT"]
[Termination "Azerichess won by resignation"]

1. e4 {[%clk 0:03:00.9]} 1... e5 {[%clk 0:02:59.9]} 2. Nf3 {[%clk 0:03:00.8]}
2... Nc6 {[%clk 0:02:59.8]} 3. Nc3 {[%clk 0:03:01.3]} 3... Nf6 {[%clk
0:02:59.4]} 4. d4 {[%clk 0:03:01.9]} 4... exd4 {[%clk 0:02:58.1]} 5. Nxd4 {[%clk
0:03:02.8]} 5... Nxe4 {[%clk 0:02:58.7]} 6. Nxc6 {[%clk 0:02:55.2]} 6... Nxc3
{[%clk 0:02:56.6]} 7. Nxd8 {[%clk 0:02:55.8]} 7... Nxd1 {[%clk 0:02:57.3]} 8.
Nxf7 {[%clk 0:02:56.4]} 8... Kxf7 {[%clk 0:02:57.9]} 9. Bc4+ {[%clk 0:02:56.5]}
9... Kf6 {[%clk 0:02:55.3]} 10. Kxd1 {[%clk 0:02:55.7]} 10... c6 {[%clk
0:02:56]} 11. Be3 {[%clk 0:02:44.6]} 11... d5 {[%clk 0:02:55.9]} 12. Bb3 {[%clk
0:02:44.2]} 12... Bd6 {[%clk 0:02:54.6]} 13. c4 {[%clk 0:02:37.1]} 13... dxc4
{[%clk 0:02:50.1]} 14. Bxc4 {[%clk 0:02:38]} 14... Be5 {[%clk 0:02:50.4]} 15.
Kc2 {[%clk 0:02:26.8]} 15... Bf5+ {[%clk 0:02:46.5]} 16. Bd3 {[%clk 0:02:27]}
16... Bxd3+ {[%clk 0:02:46.2]} 17. Kxd3 {[%clk 0:02:27.9]} 17... Rad8+ {[%clk
0:02:38.5]} 18. Kc2 {[%clk 0:02:26.8]} 18... c5 {[%clk 0:02:38.6]} 19. Rad1
{[%clk 0:02:23.6]} 19... b6 {[%clk 0:02:38.8]} 20. b3 {[%clk 0:02:20.5]} 20...
h5 {[%clk 0:02:36]} 21. h4 {[%clk 0:02:19.3]} 21... Kf5 {[%clk 0:02:36]} 22. Rd3
{[%clk 0:01:49.7]} 22... Rxd3 {[%clk 0:02:30.9]} 23. Kxd3 {[%clk 0:01:50.6]}
23... Re8 {[%clk 0:02:22.7]} 24. Rh3 {[%clk 0:01:23]} 24... Kg4 {[%clk
0:02:04.4]} 25. f3+ {[%clk 0:00:45]} 25... Kf5 {[%clk 0:02:03.5]} 26. Rh1 {[%clk
0:00:33.4]} 26... Bg3 {[%clk 0:01:45.9]} 27. Bg5 {[%clk 0:00:32.4]} 27... Re6
{[%clk 0:01:40.9]} 28. Kc4 {[%clk 0:00:30.4]} 28... Re2 {[%clk 0:01:40.1]} 29.
a4 {[%clk 0:00:21.8]} 29... Rxg2 {[%clk 0:01:36.3]} 30. Rd1 {[%clk 0:00:21.5]}
30... Rc2+ {[%clk 0:01:36.3]} 31. Kb5 {[%clk 0:00:20.4]} 31... Rc3 {[%clk
0:01:36.7]} 32. b4 {[%clk 0:00:13.8]} 32... Rb3 {[%clk 0:01:34.5]} 33. Bd2
{[%clk 0:00:04.5]} 33... Rd3 {[%clk 0:01:25.3]} 34. bxc5 {[%clk 0:00:04]} 34...
bxc5 {[%clk 0:01:26.2]} 35. Kc4 {[%clk 0:00:04.3]} 35... Rd4+ {[%clk 0:01:22.3]}
36. Kxc5 {[%clk 0:00:04.5]} 36... Bf2 {[%clk 0:01:22.9]} 37. Kb5 {[%clk
0:00:02.3]} 0-1